fUST/lending_fUST_20250830
["ID","MTS","AMOUNT","RATE_DAILY","PERIOD"]
[382186011,1756537582578,-480.0,0.00023632,2]
[382186012,1756537582600,-594.37,0.00023632,2]
[382186013,1756537582621,-1000.0,0.00023632,2]
[382186014,1756537582644,-1666.08,0.00023632,2]
[382186015,1756537582665,-863.31,0.00023632,2]
[382186016,1756537582687,-1593.43839552,0.00023632,15]
[382186017,1756537582710,-480.0,0.00023632,2]
[382186018,1756537582732,-480.0,0.00023632,2]
[382186019,1756537582755,-480.0,0.00023632,2]
[382186020,1756537582780,-480.0,0.00023632,2]
[382186021,1756537582802,-480.0,0.00023632,2]
[382186022,1756537582826,-480.0,0.00023632,2]
[382186023,1756537582848,-1285.38,0.00023632,2]
[382186024,1756537582869,-480.0,0.00023632,2]
[382186025,1756537582890,-480.0,0.00023632,2]
[382186026,1756537582912,-480.0,0.00023632,2]
[382186027,1756537582933,-480.0,0.00023632,2]
[382186028,1756537582955,-480.0,0.00023632,2]
[382186029,1756537582977,-480.0,0.00023632,2]
[382186030,1756537583001,-780.23,0.00023632,2]
[382186031,1756537583024,-1163.94,0.00023632,2]
[382186032,1756537583047,-480.0,0.00023632,2]
[382186033,1756537583070,-498.9,0.00023632,2]
[382186034,1756537583093,-862.67,0.00023632,2]
[382186035,1756537583115,-1319.66,0.00023632,2]
[382186036,1756537583136,-480.0,0.00023632,2]
[382186037,1756537583163,-480.0,0.00023632,2]
[382186038,1756537583184,-480.0,0.00023632,2]
[382186039,1756537583386,-480.0,0.00023632,2]
[382186040,1756537583414,-1413.42,0.00023632,2]
[382186041,1756537583438,-1981.04,0.00023632,2]
[382186042,1756537583459,-1489.8,0.00023632,2]
[382186043,1756537583481,-2114.69,0.00023632,2]
[382186044,1756537583502,-2114.69,0.00023632,2]
[382186045,1756537583524,-2114.69,0.00023632,2]
[382186046,1756537583548,-2114.69,0.00023632,2]
[382186047,1756537583570,-2114.69,0.00023632,2]
[382186048,1756537583592,-480.0,0.00023632,2]
[382186049,1756537583615,-2114.69,0.00023632,2]
[382186050,1756537583637,-2114.69,0.00023632,2]
[382186051,1756537583659,-2114.69,0.00023632,2]
[382186052,1756537583682,-2114.69,0.00023632,2]
[382186053,1756537583704,-2114.69,0.00023632,2]
[382186054,1756537583725,-2114.69,0.00023632,2]
[382186055,1756537583747,-2114.69,0.00023632,2]
[382186056,1756537583769,-2114.69,0.00023632,2]
[382186057,1756537583790,-2114.69,0.00023632,2]
[382186058,1756537583811,-2114.69,0.00023632,2]
[382186059,1756537583833,-2114.69,0.00023632,2]
[382186060,1756537583856,-2114.69,0.00023632,2]
[382186061,1756537583878,-2114.69,0.00023632,2]
[382186062,1756537583901,-1470.37,0.00023632,2]
[382186063,1756537583924,-1432.99,0.00023632,2]
[382186064,1756537583946,-480.0,0.00023632,2]
[382186065,1756537583969,-1748.23,0.00023632,2]
[382186066,1756537583991,-480.0,0.00023632,2]
[382186067,1756537584012,-480.0,0.00023632,2]
[382186068,1756537584033,-481.85459336,0.00023632,2]
[382186069,1756537584055,-480.0,0.00023632,2]
[382186070,1756537584077,-566.45671645,0.00023632,2]
[382186071,1756537584099,-980.67,0.00023632,2]
[382186072,1756537584121,-480.0,0.00023632,2]
[382186073,1756537584146,-1581.62,0.00023632,2]
[382186074,1756537584168,-480.0,0.00023632,2]
[382186075,1756537584189,-1697.25,0.00023632,2]
[382186076,1756537584212,-480.0,0.00023632,2]
[382186077,1756537584236,-480.0,0.00023632,2]
[382186078,1756537584258,-1389.68,0.00023632,2]
[382186079,1756537584279,-480.0,0.00023632,2]
[382186080,1756537584302,-480.0,0.00023632,2]
[382186081,1756537584324,-480.00000001,0.00023632,2]
[382186082,1756537584346,-480.0,0.00023632,2]
[382186083,1756537584368,-480.0,0.00023632,2]
[382186084,1756537584391,-669.74,0.00023632,2]
[382186085,1756537584413,-480.0,0.00023632,2]
[382186086,1756537584438,-8286.73,0.00023632,2]
[382186087,1756537584460,-480.0,0.00023632,2]
[382186088,1756537584483,-540.21,0.00023632,2]
[382186089,1756537584507,-6221.61,0.00023632,2]
[382186090,1756537584530,-480.0,0.00023632,2]
[382186091,1756537584555,-480.0,0.00023632,2]
[382186092,1756537584576,-482.77117779,0.00023632,2]
[382186093,1756537584598,-483.7050389,0.00023632,2]
[382186094,1756537584620,-1050.91,0.00023632,2]
[382186095,1756537584642,-561.8,0.00023632,2]
[382186096,1756537584665,-480.85488803,0.00023632,2]
[382186097,1756537584689,-480.0,0.00023632,2]
[382186098,1756537584711,-480.0,0.00023632,2]
[382186099,1756537584734,-480.0,0.00023632,2]
[382186100,1756537584758,-484.83,0.00023632,2]
[382186101,1756537584780,-480.0,0.00023632,2]
[382186102,1756537584803,-480.0,0.00023632,2]
[382186103,1756537584825,-782.63,0.00023632,2]
[382186104,1756537584850,-480.0,0.00023632,2]
[382186105,1756537584871,-480.0,0.00023632,2]
[382186106,1756537584898,-1979.61,0.00023632,2]
[382186107,1756537584919,-2292.07,0.00023632,2]
[382186108,1756537584943,-3363.04,0.00023632,2]
[382186109,1756537584966,-480.0,0.00023632,2]
[382186110,1756537584988,-483.21095495,0.00023632,2]
[382186111,1756537585011,-480.0,0.00023632,2]
[382186112,1756537585032,-438.95092621,0.00023632,2]
[382186113,1756537585054,-655.4,0.00023632,2]
[382186114,1756537585076,-480.0,0.00023632,2]
[382186115,1756537585098,-480.0,0.00023632,2]
[382186116,1756537585119,-480.0,0.00023632,2]
[382186117,1756537585141,-480.0,0.00023632,2]
[382186118,1756537585165,-1488.1,0.00023632,2]
[382186119,1756537585186,-480.0,0.00023632,2]
[382186120,1756537585208,-480.0,0.00023632,2]
[382186121,1756537585229,-480.0,0.00023632,2]
[382186122,1756537585251,-480.0,0.00023632,2]
[382186123,1756537585272,-480.0,0.00023632,2]
[382186124,1756537585294,-480.0,0.00023632,2]
[382186125,1756537585317,-480.0,0.00023632,2]
[382186126,1756537585338,-994.83,0.00023632,2]
[382186127,1756537585360,-480.0,0.00023632,2]
[382186128,1756537585381,-480.0,0.00023632,2]
[382186129,1756537585403,-480.0,0.00023632,2]
[382186130,1756537585424,-480.0,0.00023632,2]
[382186131,1756537585446,-480.0,0.00023632,2]
[382186132,1756537585468,-480.0,0.00023632,2]
[382186133,1756537585491,-1649.3,0.00023632,2]
[382186134,1756537585513,-1498.49,0.00023632,2]
[382186135,1756537585534,-480.0,0.00023632,2]
[382186136,1756537585556,-1669.71,0.00023632,2]
[382186137,1756537585577,-480.0,0.00023632,2]
[382186138,1756537585600,-480.0,0.00023632,2]
[382186139,1756537585622,-922.81,0.00023632,2]
[382186140,1756537585645,-1480.38,0.00023632,2]
[382186141,1756537585667,-480.0,0.00023632,2]
[382186142,1756537585689,-480.0,0.00023632,2]
[382186143,1756537585711,-480.68021793,0.00023632,2]
[382186144,1756537585733,-480.0,0.00023632,2]
[382186145,1756537585755,-480.0,0.00023632,2]
[382186146,1756537585777,-480.0,0.00023632,2]
[382186147,1756537585799,-480.0,0.00023632,2]
[382186148,1756537585822,-480.0,0.00023632,2]
[382186149,1756537585844,-575.01,0.00023632,2]
[382186150,1756537585866,-480.0,0.00023632,2]
[382186151,1756537585889,-500.0,0.00023632,15]
[382186152,1756537585912,-12466.401185,0.00023632,2]
[382186153,1756537586847,480.0,0.00023532,2]
[382186154,1756537586931,500.0,0.00023532,2]
[382186155,1756537586971,500.0,0.00023532,2]
[382186156,1756537587411,479.9981671,0.00023532,2]
[382186157,1756537588279,480.0,0.00023532,2]
[382186158,1756537588695,247.28059762,0.00023532,2]
[382186159,1756537588771,500.0,0.00023532,2]
[382186160,1756537588864,319.32103116,0.00023532,2]
[382186161,1756537589405,480.0,0.00023532,2]
[382186162,1756537589481,484.42081262,0.00023532,2]
[382186163,1756537589561,500.0,0.00023532,2]
[382186164,1756537589638,614.66199868,0.00023532,2]
[382186165,1756537591634,4039.99,0.00023532,2]
[382186166,1756537593460,45.28372087,0.00023532,2]
[382186167,1756537593530,503.41627913,0.00023532,2]
[382186168,1756537595511,1528.17,0.00023532,2]
[382186169,1756537598103,597.69,0.00023532,2]
[382186170,1756537636091,-300.0,0.00023432,2]
[382186171,1756537679116,-320.0,0.00023433,2]
[382186172,1756537684341,7536.0942812,0.00022667,2]
[382186173,1756537694627,311.22670446,0.000199,2]
[382186174,1756537694780,311.22670446,0.00022985,2]
[382186175,1756537715639,500.0,0.00023432,2]
[382186176,1756537715736,353.0802634,0.00023432,2]
[382186177,1756537715843,234.11783596,0.00023432,2]
[382186178,1756537715950,500.0,0.00023432,2]
[382186179,1756537716049,254.26421052,0.00023432,2]
[382186180,1756537716145,245.73578948,0.00023432,2]
[382186181,1756537716264,500.0,0.00023432,2]
[382186182,1756537716373,500.0,0.00023432,2]
[382186183,1756537716482,500.0,0.00023432,2]
[382186184,1756537716593,500.0,0.00023432,2]
[382186185,1756537716701,500.0,0.00023432,2]
[382186186,1756537716830,500.0,0.00023432,2]
[382186187,1756537716930,500.0,0.00023432,2]
[382186188,1756537717035,500.0,0.00023432,2]
[382186189,1756537717142,500.0,0.00023432,2]
[382186190,1756537717252,500.0,0.00023432,2]
[382186191,1756537717363,500.0,0.00023432,2]
[382186192,1756537717467,500.0,0.00023432,2]
[382186193,1756537717563,500.0,0.00023432,2]
[382186194,1756537717657,268.23543837,0.00023432,2]
[382186195,1756537717753,500.0,0.00023432,2]
[382186196,1756537717858,500.0,0.00023432,2]
[382186197,1756537717952,500.0,0.00023432,2]
[382186198,1756537718040,500.0,0.00023432,2]
[382186199,1756537718133,500.0,0.00023432,2]
[382186200,1756537718224,486.03877215,0.00023432,2]
[382186201,1756537718302,13.96122785,0.00023432,2]
[382186202,1756537718386,500.0,0.00023432,2]
[382186203,1756537718483,500.0,0.00023432,2]
[382186204,1756537718570,500.0,0.00023432,2]
[382186205,1756537718649,500.0,0.00023432,2]
[382186206,1756537718721,500.0,0.00023432,2]
[382186207,1756537718803,500.0,0.00023432,2]
[382186208,1756537718884,500.0,0.00023432,2]
[382186209,1756537718953,500.0,0.00023432,2]
[382186210,1756537719042,500.0,0.00023432,2]
[382186211,1756537719107,500.0,0.00023432,2]
[382186212,1756537719173,500.0,0.00023432,2]
[382186213,1756537719245,500.0,0.00023432,2]
[382186214,1756537719308,263.46100908,0.000234,2]
[382186215,1756537719367,500.0,0.00023432,2]
[382186216,1756537719427,500.0,0.00023432,2]
[382186217,1756537719486,500.0,0.00023432,2]
[382186218,1756537719704,500.0,0.00023432,2]
[382186219,1756537719770,500.0,0.00023432,2]
[382186220,1756537719832,500.0,0.00023432,2]
[382186221,1756537719910,650.0,0.00023432,2]
[382186222,1756537719980,72.58776307,0.00023432,2]
[382186223,1756537720044,427.41223693,0.00023432,2]
[382186224,1756537720121,500.0,0.00023432,2]
[382186225,1756537720196,500.0,0.00023432,2]
[382186226,1756537720276,500.0,0.00023432,2]
[382186227,1756537720350,500.0,0.00023432,2]
[382186228,1756537720419,372.18059954,0.00023432,2]
[382186229,1756537720496,500.0,0.00023432,2]
[382186230,1756537720565,500.0,0.00023432,2]
[382186231,1756537720638,500.0,0.00023432,2]
[382186232,1756537720705,500.0,0.00023432,2]
[382186233,1756537720770,500.0,0.00023432,2]
[382186234,1756537720838,500.0,0.00023432,2]
[382186235,1756537720911,627.22667526,0.00023432,2]
[382186236,1756537720976,441.27307088,0.00023432,2]
[382186237,1756537721045,500.0,0.00023432,2]
[382186238,1756537721108,500.0,0.00023432,2]
[382186239,1756537721190,500.0,0.00023432,2]
[382186240,1756537721257,500.0,0.00023432,2]
[382186241,1756537721335,500.0,0.00023432,2]
[382186242,1756537721402,500.0,0.00023432,2]
[382186243,1756537721476,131.91741739,0.00023432,2]
[382186244,1756537721545,368.08258261,0.00023432,2]
[382186245,1756537721963,500.0,0.00023432,2]
[382186246,1756537722034,500.0,0.00023432,2]
[382186247,1756537723211,500.0,0.00023432,2]
[382186248,1756537723985,-5831.70481021,0.00023433,2]
[382186249,1756537724042,-10000.01,0.00023433,2]
[382186250,1756537724095,-10000.01,0.00023433,2]
[382186251,1756537724340,-10000.01,0.00023433,2]
[382186252,1756537724392,-10000.01,0.00023433,2]
[382186253,1756537726741,-10000.01,0.00023433,2]
[382186254,1756537726902,-10000.01,0.00023433,2]
[382186255,1756537727112,-10000.01,0.00023433,2]
[382186256,1756537727306,-10000.01,0.00023433,2]
[382186257,1756537727531,-10000.01,0.00023433,2]
[382186258,1756537727728,-10000.01,0.00023433,2]
[382186259,1756537727938,-10000.01,0.00023433,2]
[382186260,1756537728214,-10000.01,0.00023433,2]
[382186261,1756537728444,-10000.01,0.00023433,2]
[382186262,1756537728682,-10000.01,0.00023433,2]
[382186263,1756537776401,-462.36,0.00023423,3]
[382186264,1756537776442,-436.54703766,0.00023432,2]
[382186265,1756537776476,-480.0,0.00023432,2]
[382186266,1756537776510,-499.99999999,0.00023432,2]
[382186267,1756537776549,-500.0,0.00023432,2]
[382186268,1756537776584,-632.0194317,0.00023432,2]
[382186269,1756537776619,-500.0,0.00023432,2]
[382186270,1756537776657,-500.0,0.00023432,2]
[382186271,1756537776700,-500.0,0.00023432,2]
[382186272,1756537776738,-478.1570613,0.00023432,2]
[382186273,1756537776897,-21.8429387,0.00023432,2]
[382186274,1756537776938,-500.0,0.00023432,2]
[382186275,1756537776972,-414.7583377,0.00023432,2]
[382186276,1756537777005,-500.0,0.00023432,2]
[382186277,1756537777043,-500.0,0.00023432,2]
[382186278,1756537777076,-500.0,0.00023432,2]
[382186279,1756537777113,-500.0,0.00023432,2]
[382186280,1756537777144,-544.50991395,0.00023432,2]
[382186281,1756537777183,-500.0,0.00023432,2]
[382186282,1756537777229,-500.0,0.00023432,2]
[382186283,1756537777474,-500.0,0.00023432,2]
[382186284,1756537777709,-500.0,0.00023432,2]
[382186285,1756537777753,-500.0,0.00023432,2]
[382186286,1756537777791,-500.0,0.00023432,2]
[382186287,1756537777832,-503.80574618,0.00023432,2]
[382186288,1756537777864,-500.0,0.00023432,2]
[382186289,1756537777905,-500.0,0.00023432,2]
[382186290,1756537777938,-500.0,0.00023432,2]
[382186291,1756537777975,-500.0,0.00023432,2]
[382186292,1756537778019,-500.0,0.00023432,2]
[382186293,1756537778056,-492.39850764,0.00023432,2]
[382186294,1756537778207,-7.60149236,0.00023432,2]
[382186295,1756537778240,-500.0,0.00023432,2]
[382186296,1756537778278,-500.0,0.00023432,2]
[382186297,1756537778310,-500.0,0.00023432,2]
[382186298,1756537778346,-500.0,0.00023432,2]
[382186299,1756537778383,-500.0,0.00023432,2]
[382186300,1756537778420,-500.0,0.00023432,2]
[382186301,1756537778457,-500.0,0.00023432,2]
[382186302,1756537778496,-500.0,0.00023432,2]
[382186303,1756537778536,-500.0,0.00023432,2]
[382186304,1756537778576,-484.80701528,0.00023432,2]
[382186305,1756537778648,-15.19298472,0.00023432,2]
[382186306,1756537778686,-500.0,0.00023432,2]
[382186307,1756537778725,-500.0,0.00023432,2]
[382186308,1756537778764,-500.0,0.00023432,2]
[382186309,1756537778799,-499.99999999,0.00023432,2]
[382186310,1756537778831,-500.0,0.00023432,2]
[382186311,1756537778867,-500.0,0.00023432,2]
[382186312,1756537778900,-500.0,0.00023432,2]
[382186313,1756537778936,-500.0,0.00023432,2]
[382186314,1756537778969,-500.0,0.00023432,2]
[382186315,1756537779005,-469.62403058,0.00023432,2]
[382186316,1756537779281,-30.37596942,0.00023432,2]
[382186317,1756537779349,-500.0,0.00023432,2]
[382186318,1756537779409,-500.0,0.00023432,2]
[382186319,1756537779473,-500.0,0.00023432,2]
[382186320,1756537779545,-500.0,0.00023432,2]
[382186321,1756537779618,-500.0,0.00023432,2]
[382186322,1756537779684,-500.0,0.00023432,2]
[382186323,1756537779754,-500.0,0.00023432,2]
[382186324,1756537779825,-500.0,0.00023432,2]
[382186325,1756537779891,-200.0,0.00023433,10]
[382186326,1756537779955,-200.0,0.00023433,10]
[382186327,1756537780018,-200.0,0.00023433,10]
[382186328,1756537780079,-204.697243,0.00023433,10]
[382186329,1756537780221,329.86357516,0.00023432,2]
[382186330,1756537780516,-170.13642484,0.00023432,2]
[382186331,1756537780592,-500.0,0.00023432,2]
[382186332,1756537780668,-500.0,0.00023432,2]
[382186333,1756537780796,500.0,0.00023432,2]
[382186334,1756537780874,500.0,0.00023432,2]
[382186335,1756537781000,500.0,0.00023432,2]
[382186336,1756537781071,500.0,0.00023432,2]
[382186337,1756537781208,500.0,0.00023432,2]
[382186338,1756537781311,500.0,0.00023432,2]
[382186339,1756537781375,500.0,0.00023432,2]
[382186340,1756537781453,500.0,0.00023432,2]
[382186341,1756537781528,500.0,0.00023432,2]
[382186342,1756537781601,500.0,0.00023432,2]
[382186343,1756537781939,500.0,0.00023432,2]
[382186344,1756537782008,500.0,0.00023432,2]
[382186345,1756537782071,500.0,0.00023432,2]
[382186346,1756537782141,500.0,0.00023432,2]
[382186347,1756537782214,500.0,0.00023432,2]
[382186348,1756537782361,159.73715032,0.00023432,2]
[382186349,1756537782418,340.26284968,0.00023432,2]
[382186350,1756537782638,228.7906949,0.00023432,2]
[382186351,1756537782833,641.06382875,0.00023432,2]
[382186352,1756537782894,500.0,0.00023432,2]
[382186353,1756537783021,500.0,0.00023432,2]
[382186354,1756537783139,164.07762091,0.00023432,2]
[382186355,1756537783267,500.0,0.00023432,2]
[382186356,1756537783391,500.0,0.00023432,2]
[382186357,1756537783461,500.0,0.00023432,2]
[382186358,1756537783619,500.0,0.00023432,2]
[382186359,1756537783788,500.0,0.00023432,2]
[382186360,1756537783923,500.0,0.00023432,2]
[382186361,1756537784317,500.0,0.00023432,2]
[382186362,1756537784390,500.0,0.00023432,2]
[382186363,1756537784534,500.0,0.00023432,2]
[382186364,1756537784604,500.0,0.00023432,2]
[382186365,1756537784736,500.0,0.00023432,2]
[382186366,1756537784888,500.0,0.00023432,2]
[382186367,1756537785096,500.0,0.00023432,2]
[382186368,1756537785523,500.0,0.00023432,2]
[382186369,1756537786349,500.0,0.00023432,2]
[382186370,1756537786496,125.81500576,0.00023432,2]
[382186371,1756537786560,402.57435396,0.00023432,2]
[382186372,1756537786635,500.0,0.00023432,2]
[382186373,1756537787592,500.0,0.00023432,2]
[382186374,1756537789184,219.56135008,0.00023432,2]
[382186375,1756537789730,451.47,0.00023423,3]
[382186376,1756537790325,500.0,0.00023432,2]
[382186377,1756537790392,500.0,0.00023432,2]
[382186378,1756537790461,711.60452924,0.00023432,2]
[382186379,1756537790531,711.60452924,0.00023432,2]
[382186380,1756537790596,370.02959709,0.00023432,2]
[382186381,1756537790666,711.60452924,0.00023432,2]
[382186382,1756537790735,711.60452924,0.00023432,2]
[382186383,1756537790805,711.60452924,0.00023432,2]
[382186384,1756537790875,711.60452924,0.00023432,2]
[382186385,1756537790946,711.60452924,0.00023432,2]
[382186386,1756537791019,711.60452924,0.00023432,2]
[382186387,1756537791095,711.60452924,0.00023432,2]
[382186388,1756537791167,151.93393571,0.00023432,2]
[382186389,1756537791232,559.67059353,0.00023432,2]
[382186390,1756537791310,711.60452924,0.00023432,2]
[382186391,1756537791382,711.60452924,0.00023432,2]
[382186392,1756537791453,711.60452924,0.00023432,2]
[382186393,1756537791536,711.60452924,0.00023432,2]
[382186394,1756537791610,711.60452924,0.00023432,2]
[382186395,1756537791687,711.60452924,0.00023432,2]
[382186396,1756537791762,711.60452924,0.00023432,2]
[382186397,1756537791884,711.60452924,0.00023432,2]
[382186398,1756537791959,711.60452924,0.00023432,2]
[382186399,1756537792033,711.60452924,0.00023432,2]
[382186400,1756537792111,711.60452924,0.00023432,2]
[382186401,1756537792188,711.60452924,0.00023432,2]
[382186402,1756537792266,711.60452924,0.00023432,2]
[382186403,1756537792341,189.48052635,0.00023432,2]
[382186441,1756537838850,-5000.0,0.00023189,6]
[382186442,1756537838860,-225.73,0.00023423,3]
[382186443,1756537838869,-1257.04,0.00023423,10]
[382186444,1756537838879,-677.24,0.00023423,3]
[382186445,1756537838888,-300.0,0.0002343,2]
[382186446,1756537838898,-300.0,0.00023431,2]
[382186447,1756537838908,-300.0,0.00023431,2]
[382186448,1756537838917,-300.0,0.00023431,2]
[382186449,1756537838927,-300.0,0.00023431,2]
[382186450,1756537838937,-1200.0,0.00023431,2]
[382186451,1756537838948,-1099.46,0.00023432,2]
[382186452,1756537838958,-263.46100908,0.00023432,2]
[382186453,1756537838970,-480.0,0.00023432,2]
[382186454,1756537838979,-531.07369208,0.00023432,2]
[382186455,1756537838989,-480.0,0.00023432,2]
[382186456,1756537839000,-1661.16,0.00023432,2]
[382186457,1756537839010,-500.0,0.00023432,2]
[382186458,1756537839020,-500.0,0.00023432,2]
[382186459,1756537839029,-500.0,0.00023432,2]
[382186460,1756537839039,-500.0,0.00023432,2]
[382186461,1756537839049,-500.0,0.00023432,2]
[382186462,1756537839060,-500.0,0.00023432,2]
[382186463,1756537839069,-500.0,0.00023432,2]
[382186464,1756537839079,-500.0,0.00023432,2]
[382186465,1756537839089,-500.0,0.00023432,2]
[382186466,1756537839100,-500.0,0.00023432,2]
[382186467,1756537839110,-500.0,0.00023432,2]
[382186468,1756537839119,-500.0,0.00023432,2]
[382186469,1756537839130,-500.0,0.00023432,2]
[382186470,1756537839139,-500.0,0.00023432,2]
[382186471,1756537839151,-500.0,0.00023432,2]
[382186472,1756537839161,-500.0,0.00023432,2]
[382186473,1756537839171,-503.80574618,0.00023432,2]
[382186474,1756537839181,-500.0,0.00023432,2]
[382186475,1756537839190,-500.0,0.00023432,2]
[382186476,1756537839200,-500.0,0.00023432,2]
[382186477,1756537839211,-500.0,0.00023432,2]
[382186478,1756537839222,-223848.15518979,0.00023433,2]
[382186479,1756537839233,-5095.81,0.000235,7]
[382186480,1756537839245,-38900.84,0.000235,7]
[382186481,1756537839254,-151.25000757,0.00023529,2]
[382186482,1756537839265,-254.52718479,0.00023529,2]
[382186483,1756537839275,-500.0,0.00023529,2]
[382186484,1756537839285,-500.0,0.00023529,2]
[382186485,1756537839295,-259.26220817,0.00023529,2]
[382186486,1756537839305,-500.0,0.00023529,2]
[382186487,1756537839315,-500.0,0.00023529,2]
[382186488,1756537839326,-500.0,0.00023529,2]
[382186489,1756537839336,-549.84086476,0.00023529,2]
[382186490,1756537839348,-712.03,0.00023532,2]
[382186491,1756537839358,-480.0,0.00023532,2]
[382186492,1756537839549,-480.0,0.00023532,2]
[382186493,1756537839560,-480.0,0.00023532,2]
[382186494,1756537839570,-480.0,0.00023532,2]
[382186495,1756537839579,-500.0,0.00023532,2]
[382186496,1756537839589,-500.0,0.00023532,2]
[382186497,1756537839598,-500.0,0.00023532,2]
[382186498,1756537839608,-500.0,0.00023532,2]
[382186499,1756537839617,-500.0,0.00023532,2]
[382186500,1756537839627,-500.0,0.00023532,2]
[382186501,1756537839636,-500.0,0.00023532,2]
[382186502,1756537839645,-552.65360052,0.00023532,2]
[382186503,1756537839655,-480.0,0.00023532,2]
[382186504,1756537839665,-480.0,0.00023532,2]
[382186505,1756537839680,-480.0,0.00023532,2]
[382186506,1756537839689,-1549.38,0.00023532,2]
[382186507,1756537839699,-480.0,0.00023532,2]
[382186508,1756537839708,-480.0,0.00023532,2]
[382186509,1756537839718,-480.0,0.00023532,2]
[382186510,1756537839727,-598.61,0.00023532,2]
[382186511,1756537839737,-480.0,0.00023532,2]
[382186512,1756537839746,-1440.61,0.00023532,2]
[382186513,1756537839756,-480.0,0.00023532,2]
[382186514,1756537839765,-480.0,0.00023532,2]
[382186515,1756537839775,-600.59,0.00023532,2]
[382186516,1756537839784,-1346.85,0.00023532,2]
[382186517,1756537839794,-480.0,0.00023532,2]
[382186518,1756537839803,-480.0,0.00023532,2]
[382186519,1756537839813,-480.0,0.00023532,2]
[382186520,1756537839823,-480.0,0.00023532,2]
[382186521,1756537839832,-484.75893649,0.00023532,2]
[382186522,1756537839842,-1195.24,0.00023532,2]
[382186523,1756537839851,-1514.57,0.00023532,2]
[382186524,1756537839861,-480.0,0.00023532,2]
[382186525,1756537839871,-519.64,0.00023532,2]
[382186526,1756537839880,-379.59582698,0.00023532,2]
[382186527,1756537839891,-1194.39,0.00023532,2]
[382186528,1756537839901,-1760.01,0.00023532,2]
[382186529,1756537839912,-482.19533852,0.00023532,2]
[382186530,1756537839922,-1410.73,0.00023532,2]
[382186531,1756537839934,-480.0,0.00023532,2]
[382186532,1756537839944,-480.0,0.00023532,2]
[382186533,1756537839955,-480.0,0.00023532,2]
[382186534,1756537839965,-1231.82,0.00023532,2]
[382186535,1756537839975,-829.54,0.00023532,2]
[382186536,1756537839984,-480.0,0.00023532,2]
[382186537,1756537839994,-1174.91,0.00023532,2]
[382186538,1756537840003,-1627.32,0.00023532,2]
[382186539,1756537840013,-1800.38,0.00023532,2]
[382186540,1756537840023,-480.0,0.00023532,2]
[382186541,1756537840032,-747.72,0.00023532,2]
[382186542,1756537840043,-480.0,0.00023532,2]
[382186543,1756537840052,-480.0,0.00023532,2]
[382186544,1756537840062,-1119.64,0.00023532,2]
[382186545,1756537840071,-1384.91,0.00023532,2]
[382186546,1756537840081,-1206.27,0.00023532,2]
[382186547,1756537840091,-480.0,0.00023532,2]